fUST/lending_fUST_20240103
["ID","MTS","AMOUNT","RATE_DAILY","PERIOD"]
[310013483,1704286242801,-153.0,0.00045671,2]
[310013484,1704286242811,-153.0,0.00045671,2]
[310013485,1704286242820,-153.0,0.00045671,2]
[310013486,1704286242829,-153.0,0.00045671,2]
[310013487,1704286242838,-153.0,0.00045671,2]
[310013488,1704286242847,-153.0,0.00045671,2]
[310013489,1704286242858,-153.0,0.00045671,2]
[310013490,1704286242868,-306.0,0.00045671,2]
[310013491,1704286242877,-153.0,0.00045671,2]
[310013492,1704286242886,-153.0,0.00045671,2]
[310013493,1704286242896,-285.7930029,0.00045671,2]
[310013494,1704286242905,-153.0,0.00045671,2]
[310013495,1704286242915,-153.0,0.00045671,2]
[310013496,1704286242925,-153.0,0.00045671,2]
[310013497,1704286242934,-153.0,0.00045671,2]
[310013498,1704286242944,-153.0,0.00045671,2]
[310013499,1704286242954,-153.0,0.00045671,2]
[310013500,1704286242963,-242.96143164,0.00045751,30]
[310013502,1704286242975,-205.75067385,0.00045751,4]
[310013503,1704286242984,-493.95095799,0.00045752,4]
[310013504,1704286242994,-687.65475,0.00045752,120]
[310013505,1704286243003,-1706.27513451,0.00045752,4]
[310013507,1704286243012,-521.0003647,0.00045752,5]
[310013508,1704286243021,-2000.0,0.00045753,21]
[310013509,1704286243031,-2000.0,0.00045753,21]
[310013510,1704286243042,-2000.0,0.00045753,21]
[310013511,1704286243051,-365.38296687,0.00045753,21]
[310013512,1704286243060,-499.0,0.00045781,6]
[310013513,1704286243070,-500.0,0.000458,120]
[310013514,1704286243079,-1377.09550969,0.00045822,4]
[310013515,1704286243089,-273.82271576,0.00045822,4]
[310013516,1704286243099,-246.09172938,0.00045823,4]
[310013517,1704286243108,-4043.84609395,0.00045823,4]
[310013518,1704286243117,-155.37485297,0.00045823,4]
[310013519,1704286243126,-163.75219479,0.00045824,4]
[310013520,1704286243136,-256.415,0.00045824,20]
[310013522,1704286243146,-155.13794741,0.00045824,4]
[310013524,1704286243156,-155.05448458,0.00045824,4]
[310013526,1704286243166,-680.43804704,0.00045824,4]
[310013528,1704286243175,-157.77952975,0.00045824,4]
[310013530,1704286243184,-155.77527291,0.00045824,4]
[310013531,1704286243194,-155.19744078,0.00045824,4]
[310013532,1704286243203,-1044.29845832,0.00045824,4]
[310013533,1704286243213,-207.52849635,0.00045824,4]
[310013534,1704286243226,-154.85144852,0.00045824,4]
[310013535,1704286243235,-1208.75368787,0.00045825,4]
[310013536,1704286243244,-447.1902748,0.00045825,4]
[310013537,1704286243254,-540.13948865,0.00045825,4]
[310013540,1704286243263,-5749.28570823,0.00045825,2]
[310013543,1704286243272,-166.2793413,0.00045825,2]
[310013545,1704286243282,-23875.69999384,0.00045825,4]
[310013550,1704286243295,-652.7084449,0.00045825,4]
[310013613,1704286243792,-155.0,0.0004483,2]
[310013614,1704286243801,-311.0,0.00045685,90]
[310013621,1704286243811,-4692.14800372,0.00045825,4]
[310013623,1704286243883,-7500.35199628,0.00045825,2]
[310013705,1704286246859,-153.362397,0.00042857,30]
[310013707,1704286246869,-474.69622233,0.0004567,4]
[310013709,1704286246878,-5803.31708114,0.00045825,2]
[310013711,1704286246887,-858.99104883,0.00045825,4]
[310013712,1704286246896,-155.3888687,0.00045826,4]
[310013714,1704286246905,-2011.41113898,0.00045826,2]
[310013715,1704286246914,-760.54924637,0.00045827,2]
[310013716,1704286246946,94500.72334939,0.0002721,7]
[310013717,1704286246959,-23254.0,0.00045827,2]
[310013910,1704286249525,3207.16995725,0.0002721,2]
[310013911,1704286249560,1618.84472105,0.0002721,2]
[310013912,1704286251388,2293.72760402,0.0002721,2]
[310013913,1704286252576,265.70132317,0.0002721,2]
[310013914,1704286252672,154.8830599,0.0002721,2]
[310013915,1704286258319,300.0,0.0002721,2]
[310013917,1704286259565,155.16578643,0.0002721,2]
[310013918,1704286261420,1645.60949816,0.0002721,2]
[310013919,1704286262647,404.97657423,0.0002721,2]
[310013920,1704286271520,1100.85563859,0.0002721,2]
[310013933,1704286470708,797.27413712,0.00021,2]
[310013934,1704286470831,165.58943198,0.00022,2]
[310013935,1704286542698,10627.74150957,0.00022,2]
[310013970,1704286679439,1108.7723631,0.00027636,120]
[310013971,1704286816046,3403.2943023,0.00026489,2]
[310013975,1704286883896,1521.43996092,0.00026489,2]
[310013977,1704286889765,9414.0597637,0.00026481,2]
[310013978,1704286891216,10265.97286371,0.00026489,2]
[310013979,1704286892027,4412.38587704,0.00026489,2]
[310013982,1704286895319,1819.06283426,0.00026489,2]
[310013983,1704286897898,1521.43996092,0.00026489,2]
[310013985,1704286905203,10265.97286371,0.00026489,2]
[310013986,1704286915298,624.97552271,0.00026489,2]
[310013987,1704286916067,2851.90183335,0.00026489,2]
[310013988,1704286921999,1521.43996092,0.00026489,2]
[310013990,1704286925572,10265.97286371,0.00026489,2]
[310013991,1704286938183,3144.4570191,0.00026476,2]
[310013992,1704286941218,3512.15011715,0.00026489,2]
[310013993,1704286941897,241.8938802,0.00026489,2]
[310014003,1704286970394,187.5283572,0.00026464,2]
[310014004,1704286977853,1466.4431095,0.00026489,5]
[310014006,1704286991831,3472.7300767,0.00026912,2]
[310014007,1704286994534,3002.11024084,0.00026464,2]
[310014010,1704287006533,1313.10729302,0.00026464,2]
[310014012,1704287011827,575.11604193,0.00026912,2]
[310014013,1704287031834,3472.7300767,0.00026897,2]
[310014015,1704287050568,1035.7977807,0.00026387,2]
[310014019,1704287086128,184.09832043,0.00026334,2]
[310014020,1704287090468,309.65937778,0.00026912,2]
[310014023,1704287103545,166.666666,0.00025895,2]
[310014024,1704287105446,3385.202222,0.00026387,2]
[310014025,1704287106776,166.666666,0.00026601,2]
[310014026,1704287108929,173.795531,0.0002606,2]
[310014027,1704287111682,1576.20853557,0.00026386,2]
[310014028,1704287111870,4431.99090233,0.00026386,2]
[310014029,1704287112701,20831.85137104,0.00026386,2]
[310014040,1704287193245,5210.01915065,0.00026386,2]
[310014041,1704287204429,2074.80218576,0.00026386,2]
[310014067,1704287248414,733.06191803,0.00026386,2]
[310014074,1704287253277,12829.58804442,0.00026386,7]
[310014096,1704287264412,459.12143074,0.00026386,2]
[310014115,1704287278866,566.19194991,0.00026386,2]
[310014116,1704287279077,155.78943376,0.00026386,2]
[310014121,1704287283592,3384.1862163,0.00026386,2]
[310014123,1704287301271,24900.0,0.0002625,2]
[310014131,1704287307267,37043.31228501,0.00026386,7]
[310014134,1704287312229,265.0724804,0.00026877,2]
[310014135,1704287312779,250.0,0.00026352,2]
[310014152,1704287326850,330.5806226,0.00027238,120]
[310014190,1704287365275,23265.85525823,0.0002625,7]
[310014195,1704287375602,5993.02,0.00027207,3]
[310014197,1704287376388,157.44677979,0.00027119,2]
[310014200,1704287387706,10620.52,0.00027205,3]
[310014203,1704287395632,154.84515485,0.0002721,2]
[310014204,1704287395849,675.8919533,0.0002721,2]
[310014205,1704287396054,1327.0422049,0.00026214,2]
[310014206,1704287396239,154.84515485,0.0002721,2]
[310014207,1704287396551,1171.19863995,0.0002721,2]
[310014208,1704287396590,5351.46729179,0.0002721,2]
[310014210,1704287397340,4863.84931342,0.0002721,2]
[310014211,1704287397476,586.04748878,0.0002721,2]
[310014212,1704287397504,20802.94450653,0.0002721,2]
[310014213,1704287397905,451.07921998,0.0002721,2]
[310014214,1704287398110,974.55748819,0.0002721,2]
[310014215,1704287398177,8850.43,0.00027202,3]
[310014216,1704287398211,20831.85137104,0.0002721,2]
[310014217,1704287398457,154.84515485,0.0002721,2]
[310014218,1704287398977,154.84515485,0.0002721,2]
[310014219,1704287399360,176.29639192,0.0002721,2]
[310014220,1704287399466,524.98429826,0.0002721,2]
[310014221,1704287400795,154.84515485,0.0002721,2]
[310014222,1704287401647,154.84515485,0.0002721,2]
[310014223,1704287402161,586.35428792,0.00027112,2]
[310014224,1704287403188,154.84515485,0.00027201,2]
[310014225,1704287403429,859.47841956,0.00027201,2]
[310014226,1704287403537,2997.40556678,0.0002721,2]
[310014227,1704287403939,2804.5410618,0.00027201,2]
[310014228,1704287404512,7853.18847264,0.00027201,2]
[310014229,1704287405524,466.12469227,0.0002721,2]
[310014230,1704287405555,285.30351426,0.0002721,2]
[310014231,1704287405842,15185.30495486,0.0002721,2]
[310014232,1704287407073,328.2954028,0.0002721,2]
[310014233,1704287407327,212.61910187,0.0002721,2]
[310014234,1704287408084,321.94449774,0.0002721,2]
[310014235,1704287408350,399.38718748,0.0002721,2]
[310014238,1704287408697,825.85990577,0.000264,2]
[310014239,1704287411529,413.50609139,0.0002721,2]
[310014240,1704287411668,2990.08384051,0.0002721,2]
[310014241,1704287411962,7375.36,0.00027202,3]
[310014243,1704287412167,154.84515485,0.0002721,2]
[310014244,1704287413267,154.84515485,0.0002721,2]
[310014245,1704287413348,612.96786415,0.0002721,2]
[310014247,1704287416442,154.84515485,0.0002721,2]
[310014248,1704287417585,360.177092,0.0002721,2]
[310014249,1704287418392,253.17313502,0.0002721,2]
[310014250,1704287418789,3732.74533379,0.0002721,2]
[310014251,1704287419960,170.1709713,0.0002721,2]
[310014252,1704287420919,757.57936936,0.0002721,5]
[310014253,1704287422491,6146.14,0.00027202,3]
[310014254,1704287422661,1019.46116191,0.0002721,2]
[310014255,1704287424108,154.84515485,0.0002721,2]
[310014256,1704287424302,5944.69403083,0.0002721,2]
[310014257,1704287424379,254.91008809,0.0002721,2]
[310014258,1704287424408,190.72300866,0.0002721,2]
[310014259,1704287425839,245.55870281,0.0002721,2]
[310014260,1704287426180,2508.36986414,0.0002721,2]
[310014261,1704287426986,249.91407237,0.0002721,2]
[310014262,1704287428189,154.84515485,0.0002721,2]
[310014263,1704287428386,154.84515485,0.0002721,2]
[310014264,1704287429040,2810.77756441,0.0002721,2]
[310014265,1704287431535,191.41130297,0.0002694,2]
[310014266,1704287432771,1193.2978632,0.0002721,2]
[310014267,1704287432806,78250.97365781,0.0002721,2]
[310014268,1704287432964,5121.78,0.00027202,3]
[310014269,1704287432997,2090.15137702,0.0002721,2]
[310014270,1704287433818,900.11478533,0.0002721,2]
[310014278,1704287433939,7932.20562033,0.0002721,2]
[310014346,1704287434469,-230.12748224,0.00027211,2]
[310014348,1704287434481,-944.51958651,0.00027211,2]
[310014350,1704287434493,-553.25941224,0.00027211,2]
[310014352,1704287434503,-873.72208253,0.00027211,2]
[310014354,1704287434514,-2031.60443603,0.00027211,2]
[310014356,1704287434525,-1247.57670867,0.00027211,2]
[310014388,1704287434723,-1233.5494854,0.00027211,2]
[310014390,1704287434733,-19632.2086524,0.00027211,2]
[310014392,1704287434743,-343.43501932,0.00027211,2]
[310014394,1704287434753,-9901.73084191,0.00027211,2]
[310014395,1704287434763,-154.84515485,0.00027211,4]
[310014396,1704287434773,-242.17543569,0.00027211,2]
[310014398,1704287434783,-156.60017086,0.00027211,2]
[310014399,1704287434796,-156.56092119,0.00027211,2]
[310014401,1704287434805,-12669.98140755,0.00027211,2]
[310014402,1704287434815,-4781.11668773,0.00027212,2]
[310014403,1704287434824,-1576.20853557,0.00027212,2]
[310014404,1704287434835,-154.84515485,0.00027212,2]
[310014405,1704287434845,-264.74772312,0.00027212,2]
[310014406,1704287434855,-559.68125324,0.00027212,2]
[310014407,1704287434865,-679.37734518,0.00027212,2]
[310014408,1704287434874,-4803.68452735,0.00027212,2]
[310014409,1704287434884,-4703.58483279,0.00027212,2]
[310014410,1704287434894,-7544.16505711,0.00027212,2]
[310014411,1704287434904,-1573.51769649,0.00027212,2]
[310014412,1704287434913,-1311.04470164,0.00027212,2]
[310014413,1704287434923,-154.84515485,0.00027212,2]
[310014414,1704287434932,-160.68641951,0.00027212,2]
[310014415,1704287434942,-253.17313502,0.00027212,2]
[310014416,1704287434951,-154.84515485,0.00027212,2]
[310014417,1704287434963,-468.93451344,0.00027212,2]
[310014418,1704287434972,-612.96786415,0.00027212,2]
[310014420,1704287434981,-483.75644311,0.00027212,2]
[310014421,1704287434991,-154.84515485,0.00027212,2]
[310014422,1704287435000,-198.56177708,0.00027212,2]
[310014423,1704287435010,-520.2185,0.00027213,2]
[310014424,1704287435019,-2704.45519417,0.00027213,2]
[310014425,1704287435029,-154.84515485,0.00027213,2]
[310014426,1704287435039,-460.19779524,0.00027213,20]
[310014427,1704287435049,-1238.07238046,0.00027213,2]
[310014428,1704287435059,-4908.91880815,0.00027213,2]
[310014429,1704287435069,-3905.16799703,0.00027213,2]
[310014430,1704287435079,-178.24808117,0.00027214,2]
[310014431,1704287435089,-707.91854197,0.00027214,2]
[310014432,1704287435099,-293.96606539,0.00027214,2]
[310014433,1704287435109,-852.21256595,0.00027214,2]
[310014434,1704287435119,-322.38366746,0.00027214,2]
[310014435,1704287435129,-2027.03693589,0.00027214,2]
[310014436,1704287435139,-154.84515485,0.00027215,2]
[310014437,1704287435149,-1171.19863995,0.00027215,2]
[310014438,1704287435159,-586.04748878,0.00027215,2]
[310014439,1704287435262,-20802.94450653,0.00027215,2]
[310014440,1704287435272,-154.84515485,0.00027215,2]
[310014441,1704287435282,-176.29639192,0.00027215,2]
[310014442,1704287435294,-2997.40556678,0.00027215,2]
[310014443,1704287435304,-7853.18847264,0.00027215,2]
[310014444,1704287435314,-154.84515485,0.00027215,2]
[310014445,1704287435324,-154.84515485,0.00027215,2]
[310014446,1704287435334,-524.98429826,0.00027215,2]
[310014447,1704287435346,-466.12469227,0.00027215,2]
[310014448,1704287435356,-195.20471139,0.00027215,2]
[310014449,1704287435366,-418.14747943,0.00027215,2]
[310014450,1704287435375,-859.47841956,0.00027215,2]
[310014451,1704287435385,-285.30351426,0.00027215,2]
[310014452,1704287435396,-15185.30495486,0.00027215,2]
[310014453,1704287435407,-2804.5410618,0.00027215,2]
[310014454,1704287435417,-321.94449774,0.00027215,2]
[310014455,1704287435427,-212.61910187,0.00027215,2]
[310014456,1704287435437,-2990.08384051,0.00027216,2]
[310014457,1704287435447,-154.84515485,0.00027227,2]
[310014458,1704287435458,-4431.99090233,0.00027228,2]
[310014459,1704287435468,-159.1996761,0.00027238,2]
[310014460,1704287435478,-245.15484515,0.00027238,2]
[310014461,1704287435488,-2642.67540222,0.00027238,2]
[310014462,1704287435498,-260.20445317,0.00027238,2]
[310014463,1704287435508,-1020.85077138,0.00027251,2]
[310014464,1704287435518,-1589.4696236,0.00027261,2]
[310014465,1704287435528,-2067.23046819,0.00027261,2]
[310014466,1704287435538,-166.666666,0.00027307,2]
[310014467,1704287435547,-586.35428792,0.00027309,2]
[310014468,1704287435557,-878.54587539,0.00027333,2]
[310014469,1704287435566,-299.72305191,0.00027351,2]
[310014470,1704287435577,-349.958,0.00027446,2]
[310014471,1704287435587,-2289.86161494,0.00027461,2]
[310014472,1704287435597,-300.83380095,0.00027461,2]
[310014473,1704287435607,-393.94394324,0.00027461,2]
[310014474,1704287435616,-155.53002517,0.00027461,2]
[310014475,1704287435627,-155.22839769,0.00027461,2]
[310014476,1704287435636,-178.19667533,0.00027461,2]
[310014477,1704287435647,-154.87609912,0.00027461,2]
[310014478,1704287435656,-641.13780821,0.00027461,2]
[310014479,1704287435667,-17615.8965379,0.000275,2]
[310014480,1704287435677,-586.35428792,0.00027506,2]
[310014481,1704287435687,-586.35428792,0.00027703,2]
[310014482,1704287435696,-630.29299529,0.0002772,2]
[310014483,1704287435707,-586.35428792,0.000279,2]
[310014484,1704287435717,-351.65556398,0.00028,2]
[310014485,1704287435727,-781.90839515,0.00028,2]
[310014486,1704287435737,-166.666666,0.00028013,2]
[310014487,1704287435746,-166.666666,0.00028719,2]
[310014488,1704287435755,-620.51464976,0.00029106,2]
[310014489,1704287435765,-166.666666,0.00029425,2]
[310014490,1704287435775,-296.15684876,0.000295,30]
[310014491,1704287435784,-1320.81396188,0.000297,2]
[310014492,1704287435795,-1029.00208641,0.00029788,2]
[310014493,1704287435805,-166.86352893,0.00029788,2]
[310014494,1704287435814,-264.48060354,0.00029789,2]
[310014495,1704287435823,-14415.87759725,0.0002979,7]
[310014496,1704287435837,-8428.86408097,0.0002979,7]
[310014497,1704287435847,-244.56981372,0.00029814,2]
[310014498,1704287435857,-200.0,0.00029937,15]
[310014499,1704287435867,-177.98527516,0.00029996,2]
[310014500,1704287435877,-1051.21541603,0.00029997,7]
[310014501,1704287435889,-154.86061926,0.00029998,2]
[310014502,1704287435898,-13673.02936715,0.00029998,2]
[310014503,1704287435908,-871.16529394,0.00029998,2]
[310014504,1704287435917,-166.02335344,0.00029998,2]
[310014505,1704287435928,-155.0692585,0.00029998,2]
[310014506,1704287435940,-231.0262115,0.00029998,2]
[310014507,1704287435949,-276.51691556,0.00029998,2]
[310014508,1704287435960,-309.61298454,0.00029998,2]
[310014509,1704287435970,-807.97087888,0.00029998,2]
[310014510,1704287435981,-556.96129246,0.00029999,2]
[310014511,1704287435990,-242.69270711,0.00029999,2]
[310014512,1704287436000,-470.34799076,0.00029999,2]
[310014513,1704287436010,-441.8958799,0.00029999,2]
[310014514,1704287436020,-2747.66702496,0.0003,2]
[310014515,1704287436029,-1738.05258797,0.0003,2]
[310014516,1704287436039,-10000.0,0.0003,3]
[310014517,1704287436048,-2885.24786416,0.0003,10]
[310014518,1704287436087,590.516407,0.0002721,2]
[310014519,1704287436117,36770.35479684,0.0002721,2]
[310014520,1704287436348,26377.44033991,0.0002721,2]
[310014521,1704287436528,209.95522,0.00026214,2]
[310014522,1704287436919,359.99066515,0.00024491,5]
[310014578,1704287437826,852.21256595,0.0002721,2]
[310014592,1704287438103,2704.45519417,0.0002721,2]
[310014595,1704287438130,-1276.87891946,0.00027212,2]
[310014598,1704287438141,-2455.86641433,0.00027212,2]
[310014600,1704287438152,-170.1709713,0.00027212,2]
[310014602,1704287438161,-22013.48196318,0.0003,10]
[310014604,1704287438171,-697.98528289,0.0003,2]
[310014606,1704287438180,-2129.74279197,0.0003,4]
[310014608,1704287438189,-187.0,0.0003,2]
[310014610,1704287438198,-197.00636907,0.0003013,2]
[310014612,1704287438208,-620.02573249,0.00030561,2]
[310014614,1704287438219,-974.55748819,0.00031407,2]
[310014616,1704287438228,-274.1032737,0.00032,10]
[310014618,1704287438237,-620.00128662,0.00032089,2]
[310014620,1704287438246,-4926.4261891,0.000325,15]
[310014623,1704287438255,-280.0,0.0003293,15]
[310014626,1704287438264,-686.80882388,0.00033,3]
[310014629,1704287438273,-2631.63248071,0.00033,4]
[310014632,1704287438282,-620.00006433,0.00033694,2]
[310014635,1704287438291,-308.36912425,0.00033996,4]
[310014638,1704287438300,-155.31713268,0.00033996,4]
[310014641,1704287438309,-250.04269304,0.00033997,4]
[310014644,1704287438318,-4665.85614911,0.00033998,4]
[310014646,1704287438327,-9648.77578233,0.00034,2]
[310014649,1704287438337,-1000.0,0.00034312,7]
[310014651,1704287438346,-268.52109404,0.00034313,4]
[310014653,1704287438355,-4657.66153763,0.0003452,2]
[310014655,1704287438364,-1013.570602,0.00034521,2]
[310014657,1704287438374,-7190.07121738,0.00034898,4]
[310014659,1704287438383,-6534.9223021,0.00034898,4]
[310014661,1704287438393,-183.20108502,0.00034898,4]
[310014663,1704287438402,-155.03908595,0.00034898,4]
[310014665,1704287438412,-328.76785176,0.00034898,4]
[310014667,1704287438421,-606.05653356,0.00034898,4]
[310014669,1704287438431,-7157.20037508,0.00034898,2]
[310014671,1704287438441,-2097.15281013,0.00034899,4]
[310014673,1704287438450,-2698.71304933,0.00034899,5]
[310014675,1704287438462,-21275.492547,0.000349,2]
[310014677,1704287438472,-4177.42015254,0.00035,4]
[310014679,1704287438482,-155.23486332,0.00035,6]
[310014681,1704287438491,-590.27084275,0.00035,2]
[310014683,1704287438500,-1454.45537407,0.00035,14]
[310014685,1704287438510,-414.132492,0.00035616,120]
[310014687,1704287438519,-1013.570602,0.00035798,2]
[310014689,1704287438529,-4729.51113943,0.00036,4]
[310014691,1704287438538,-229.99225833,0.00036,4]
[310014693,1704287438548,-391.0,0.00036223,15]
[310014695,1704287438557,-1013.570602,0.00037075,2]
[310014697,1704287438567,-216.53348997,0.0003724,2]
[310014699,1704287438577,-2464.42961244,0.000375,30]
[310014701,1704287438587,-23458.22246017,0.00038,7]
[310014703,1704287438597,-731.79987618,0.00038,120]
[310014705,1704287438606,-1633.51473284,0.00038,3]
[310014707,1704287438615,-1013.570602,0.00038352,2]
[310014709,1704287438626,-500.0,0.00038356,2]
[310014711,1704287438635,-1021.03823618,0.00038403,2]
[310014713,1704287438645,-1013.83376975,0.00038412,2]
[310014715,1704287438654,-304.15013092,0.00038412,2]
[310014717,1704287438663,-647.77302558,0.00038412,2]
[310014719,1704287438672,-697.00205389,0.00038419,2]
[310014721,1704287438682,-6225.31532797,0.00038703,2]
[310014723,1704287438692,-3326.08447944,0.000388,45]
[310014725,1704287438701,-1013.570602,0.0003963,2]
[310014726,1704287438713,-200.0,0.00039845,30]
[310014728,1704287438723,-348.0,0.00039845,30]
[310014730,1704287438732,-151.03,0.0003997,60]
[310014732,1704287438742,-150.0,0.0003998,60]
[310014734,1704287438751,-256.72537434,0.00039989,2]
[310014736,1704287438761,-150.0,0.0003999,60]
[310014738,1704287438770,-1787.65718992,0.0004,14]
[310014740,1704287438780,-371.04881992,0.0004,4]
[310014742,1704287438791,-1573.71175048,0.0004,10]
[310014744,1704287438801,-167.04174259,0.00040918,4]
[310014746,1704287438812,-500.0,0.00040918,4]
[310014748,1704287438822,-289.81391312,0.00040918,4]
[310014750,1704287438831,-500.0,0.00040918,4]
[310014752,1704287438840,-500.0,0.00040918,4]
[310014754,1704287438850,-176.66722724,0.00040918,4]
[310014756,1704287438860,-574.70092722,0.00040918,4]
[310014758,1704287438870,-500.35553353,0.00040918,4]
[310014760,1704287438879,-500.0,0.00040918,4]
[310014762,1704287438890,-500.0,0.00040918,4]
[310014764,1704287438899,-500.0,0.00040918,4]
[310014766,1704287438909,-7713.61089134,0.00040919,2]
[310014768,1704287438918,-16955.18186011,0.00041,10]
[310014770,1704287438927,-968.6645911,0.00041096,7]
[310014772,1704287438936,-184.77970273,0.00041143,2]
[310014774,1704287438945,-184.76548466,0.00041143,2]
[310014776,1704287438954,-154.860625,0.00041176,4]
[310014778,1704287438965,-414.132492,0.00041553,120]
[310014780,1704287438974,-182.78303,0.00042857,30]
[310014781,1704287438984,-1625.02997155,0.000429,2]
[310014784,1704287438995,-238.63,0.00043223,2]
[310014785,1704287439004,-903.91391262,0.00043531,5]
[310014787,1704287439014,-1000.0,0.00043771,14]
[310014789,1704287439024,-1000.0,0.00043772,14]
[310014791,1704287439033,-200.0,0.0004383,30]
[310014793,1704287439042,-200.0,0.0004383,30]
[310014795,1704287439052,-368.0,0.0004383,30]
[310014797,1704287439061,-550.0,0.00043835,7]
[310014799,1704287439071,-5000.0,0.00043869,15]
[310014801,1704287439081,-1012.26125547,0.00043899,15]
[310014803,1704287439092,-275.36172513,0.00044,4]
[310014805,1704287439101,-550.0,0.00044109,7]
[310014807,1704287439110,-350.0,0.00044383,7]
[310014810,1704287439120,-13204.03987112,0.000446,7]
[310014811,1704287439130,-155.0,0.0004476,2]
[310014813,1704287439139,-153.0,0.00044849,2]
[310014815,1704287439149,-306.0,0.00044849,2]
[310014817,1704287439158,-153.0,0.00044878,2]
[310014819,1704287439167,-21545.84768444,0.000449,6]
[310014821,1704287439176,-7215.82199052,0.000449,120]
[310014823,1704287439186,-153.0,0.00044958,2]
[310014826,1704287439195,-5009.79951284,0.0004499,7]
[310014828,1704287439203,-154.84515485,0.00044998,4]
[310014831,1704287439212,-1893.58,0.00044999,7]
[310014833,1704287439221,-1893.58,0.00044999,7]
[310014835,1704287439230,-1893.58,0.00044999,7]
[310014837,1704287439239,-1893.58,0.00044999,7]
[310014839,1704287439248,-1893.58,0.00044999,7]
[310014841,1704287439257,-1893.58,0.00044999,7]
[310014843,1704287439266,-1893.58,0.00044999,7]
[310014845,1704287439275,-1893.58,0.00044999,7]
[310014847,1704287439284,-1893.58,0.00044999,7]
[310014849,1704287439293,-1893.58,0.00044999,7]
[310014851,1704287439302,-500.0,0.00044999,7]
[310014853,1704287439311,-500.0,0.00044999,30]
[310014854,1704287439320,-316.65043609,0.00044999,7]
[310014857,1704287439334,-58.61621406,0.00044999,7]
[310014859,1704287439343,-507.50042043,0.00044999,7]
[310014861,1704287439352,-500.0,0.00044999,7]
[310014863,1704287439361,-500.0,0.00044999,7]
[310014865,1704287439370,-28.81891389,0.00044999,30]
[310014867,1704287439383,-471.18108611,0.00044999,30]
[310014868,1704287439392,-338.33361362,0.00044999,30]
[310014870,1704287439401,-9.95768426,0.00044999,7]
[310014872,1704287439413,-296.06801116,0.00044999,7]
[310014873,1704287439423,-500.0,0.00044999,7]
[310014875,1704287439431,-537.35046361,0.00044999,30]
[310014876,1704287439439,-250.17776677,0.00044999,30]
[310014878,1704287439447,-50366.1433,0.00044999,4]
[310014880,1704287439456,-2603.13530134,0.00045,30]
[310014881,1704287439467,-7045.54821221,0.00045,120]
[310014883,1704287439477,-464.67,0.00045,2]
[310014884,1704287439486,-2500.0,0.00045,30]
[310014885,1704287439495,-848.88,0.00045,2]
[310014886,1704287439505,-527801.40808885,0.00045,7]
[310014888,1704287439516,-25534.13003058,0.00045,7]
[310014894,1704287439630,-2532.50956457,0.00045,7]
[310014898,1704287439659,322.38366746,0.0002721,2]
[310014901,1704287439699,460.19779524,0.0002721,20]
[310014921,1704287440301,5944.69403083,0.00024491,2]
[310014935,1704287440973,-190.72300866,0.00027212,2]
[310014936,1704287440982,-1019.46116191,0.00027212,2]
[310014937,1704287440992,-3370.17064279,0.00032088,4]
[310014938,1704287441001,-26726.97789286,0.00045,7]
[310014939,1704287441013,-4773.34648592,0.00045,7]
[310014940,1704287441025,-16849.85326554,0.00045,7]
[310015034,1704287443618,-329.92532047,0.00032088,4]
[310015035,1704287443628,-194.11936672,0.00044999,4]
[310015036,1704287443638,-3742.95531281,0.00045,7]
[310015037,1704287443650,-1708.76,0.00045,7]
[310015128,1704287445975,-2266.17439223,0.00029998,2]
[310015130,1704287445985,-389.87290472,0.00029999,2]
[310015131,1704287445994,-201.57771032,0.00029999,2]
[310015132,1704287446004,-167.08838774,0.00040918,7]
[310015133,1704287446013,-282.15224891,0.00040918,4]
[310015135,1704287446023,-1879.29261138,0.0004499,3]
[310015162,1704287447571,428.1166439,0.0002721,2]
[310015163,1704287451011,184.76548466,0.00027111,2]
[310015170,1704287521601,-304.4373196,0.00028,2]
[310015171,1704287521630,-318.53994182,0.000295,30]
[310015172,1704287521666,-198.89687617,0.000295,30]